lending/lending_fUSD_20250121
["ID","MTS","AMOUNT","RATE_DAILY","PERIOD"]
[349867147,1737467458335,-500.0,0.00020721,2]
[349867148,1737467458345,-333.06,0.00020721,2]
[349867149,1737467458354,-500.0,0.00020721,2]
[349867150,1737467458364,-370.15807894,0.00020721,2]
[349867151,1737467458374,-500.0,0.00020721,2]
[349867152,1737467458383,-500.0,0.00020721,2]
[349867153,1737467458392,-500.0,0.00020721,2]
[349867154,1737467458402,-500.0,0.00020721,2]
[349867155,1737467458411,-500.0,0.00020721,2]
[349867156,1737467458420,-500.0,0.00020721,2]
[349867157,1737467458429,-500.0,0.00020721,2]
[349867158,1737467458440,-500.0,0.00020721,2]
[349867159,1737467458450,-500.0,0.00020721,2]
[349867160,1737467458460,-500.0,0.00020721,2]
[349867161,1737467458469,-500.0,0.00020721,2]
[349867162,1737467458479,-524.32395509,0.00020721,2]
[349867163,1737467458489,-500.0,0.00020721,2]
[349867164,1737467458498,-500.0,0.00020721,2]
[349867165,1737467458507,-575.12,0.00020721,2]
[349867166,1737467458517,-500.0,0.00020721,2]
[349867167,1737467458527,-500.0,0.00020721,2]
[349867168,1737467458537,-518.42197236,0.00020721,2]
[349867169,1737467458546,-500.0,0.00020721,2]
[349867170,1737467458555,-500.0,0.00020721,2]
[349867171,1737467458565,-500.0,0.00020721,2]
[349867172,1737467458574,-500.0,0.00020721,2]
[349867173,1737467458583,-500.0,0.00020721,2]
[349867174,1737467458593,-500.0,0.00020721,2]
[349867175,1737467458602,-500.0,0.00020721,2]
[349867176,1737467458611,-500.0,0.00020721,2]
[349867177,1737467458620,-500.0,0.00020721,2]
[349867178,1737467458629,-500.0,0.00020721,2]
[349867179,1737467458639,-292.8,0.00020721,2]
[349867180,1737467458648,-500.0,0.00020721,2]
[349867181,1737467458658,-500.0,0.00020721,2]
[349867182,1737467458667,-500.0,0.00020721,2]
[349867183,1737467458676,-500.0,0.00020721,2]
[349867184,1737467458686,-500.0,0.00020721,2]
[349867185,1737467458695,-500.0,0.00020721,2]
[349867186,1737467458704,-544.59,0.00020721,2]
[349867187,1737467458713,-502.36,0.00020721,2]
[349867188,1737467458722,-522.88,0.00020721,2]
[349867189,1737467458731,-500.0,0.00020721,2]
[349867190,1737467458740,-500.0,0.00020721,2]
[349867191,1737467458749,-539.91,0.00020721,2]
[349867192,1737467458758,-532.35,0.00020721,2]
[349867193,1737467458768,-883.89,0.00020721,2]
[349867194,1737467458778,-500.0,0.00020721,2]
[349867195,1737467458787,-500.0,0.00020721,2]
[349867196,1737467458796,-500.0,0.00020721,2]
[349867197,1737467458806,-500.0,0.00020721,2]
[349867198,1737467458815,-500.0,0.00020721,2]
[349867199,1737467458824,-500.0,0.00020721,2]
[349867200,1737467458833,-2935.14,0.00020721,2]
[349867201,1737467458842,-500.0,0.00020721,2]
[349867202,1737467458851,-379.2371027,0.00020721,2]
[349867203,1737467458861,-2823.03,0.00020721,2]
[349867204,1737467458870,-573.67,0.00020721,2]
[349867205,1737467458879,-2729.29,0.00020721,2]
[349867206,1737467458888,-500.0,0.00020721,2]
[349867207,1737467458898,-500.0,0.00020721,2]
[349867208,1737467458908,-500.0,0.00020721,2]
[349867209,1737467458918,-500.0,0.00020721,2]
[349867210,1737467458927,-500.0,0.00020721,2]
[349867211,1737467458936,-500.0,0.00020721,2]
[349867212,1737467458945,-500.0,0.00020721,2]
[349867213,1737467458954,-500.0,0.00020721,2]
[349867214,1737467458963,-1000.0,0.00020737,2]
[349867215,1737467458972,-5000.0,0.00020738,2]
[349867216,1737467458981,-942.54,0.00020747,2]
[349867217,1737467458991,-2548.66,0.00020755,2]
[349867218,1737467459000,-236.05,0.00020758,2]
[349867219,1737467459010,-170.40183452,0.00020767,2]
[349867220,1737467459019,-5000.0,0.00020782,2]
[349867221,1737467459029,-535.4,0.00020821,2]
[349867222,1737467459038,-500.0,0.00020821,2]
[349867223,1737467459048,-440.52,0.00020821,2]
[349867224,1737467459057,-500.0,0.00020821,2]
[349867225,1737467459066,-500.0,0.00020821,2]
[349867226,1737467459077,-500.0,0.00020821,2]
[349867227,1737467459088,-500.0,0.00020821,2]
[349867228,1737467459098,-500.0,0.00020821,2]
[349867229,1737467459107,-500.0,0.00020821,2]
[349867230,1737467459120,-500.0,0.00020821,2]
[349867231,1737467459130,-547.64317058,0.00020821,2]
[349867232,1737467459139,-500.0,0.00020821,2]
[349867233,1737467459148,-643.47,0.00020821,2]
[349867234,1737467459159,-324.66,0.00020821,2]
[349867235,1737467459168,-473.34,0.00020821,2]
[349867236,1737467459177,-500.0,0.00020821,2]
[349867237,1737467459187,-325.08,0.00020821,2]
[349867238,1737467459197,-500.0,0.00020821,2]
[349867239,1737467459206,-500.0,0.00020821,2]
[349867240,1737467459215,-500.0,0.00020821,2]
[349867241,1737467459225,-500.0,0.00020821,2]
[349867242,1737467459234,-590.0,0.00020821,2]
[349867243,1737467459244,-678.78,0.00020821,2]
[349867244,1737467459253,-500.0,0.00020821,2]
[349867245,1737467459262,-513.63101253,0.00020821,2]
[349867246,1737467459272,-310.6,0.00020821,2]
[349867247,1737467459281,-500.0,0.00020821,2]
[349867248,1737467459291,-626.98,0.00020821,2]
[349867249,1737467459301,-500.0,0.00020821,2]
[349867250,1737467459311,-1062.54,0.00020821,2]
[349867251,1737467459320,-1554.02,0.00020821,2]
[349867252,1737467459330,-500.0,0.00020821,2]
[349867253,1737467459340,-500.0,0.00020821,2]
[349867254,1737467459349,-500.0,0.00020821,2]
[349867255,1737467459359,-644.25,0.00020821,2]
[349867256,1737467459370,-534.14,0.00020821,2]
[349867257,1737467459379,-500.0,0.00020821,2]
[349867258,1737467459389,-1455.23,0.00020821,2]
[349867259,1737467459399,-616.97,0.00020821,2]
[349867260,1737467459408,-500.0,0.00020821,2]
[349867261,1737467459418,-500.0,0.00020821,2]
[349867262,1737467459427,-677.28,0.00020821,2]
[349867263,1737467459438,-500.0,0.00020821,2]
[349867264,1737467459448,-500.0,0.00020821,2]
[349867265,1737467459458,-936.54,0.00020821,2]
[349867266,1737467459467,-500.0,0.00020821,2]
[349867267,1737467459477,-500.0,0.00020821,2]
[349867268,1737467459487,-579.86,0.00020821,2]
[349867269,1737467459497,-328.35204176,0.00020821,2]
[349867270,1737467459507,-720.39,0.00020821,2]
[349867271,1737467459516,-827.66,0.00020821,2]
[349867272,1737467459528,-556.13,0.00020821,2]
[349867273,1737467459538,-500.0,0.00020821,2]
[349867274,1737467459548,-500.0,0.00020821,2]
[349867275,1737467459558,-500.0,0.00020821,2]
[349867276,1737467459568,-500.0,0.00020821,2]
[349867277,1737467459577,-525.28,0.00020821,2]
[349867278,1737467459587,-500.0,0.00020821,2]
[349867279,1737467459597,-961.58,0.00020821,2]
[349867280,1737467459607,-1879.16,0.00020821,2]
[349867281,1737467459616,-667.02,0.00020831,2]
[349867282,1737467459627,-25000.0,0.00020838,2]
[349867283,1737467459636,-160.881,0.0002085,2]
[349867284,1737467459645,-716.14119,0.000209,2]
[349867285,1737467459655,-206.17630001,0.000209,2]
[349867286,1737467459665,-3804.30406036,0.00020913,2]
[349867287,1737467459675,-25000.0,0.00020916,2]
[349867288,1737467459684,-150.0,0.00020959,2]
[349867289,1737467459694,-1600.34777947,0.00020959,2]
[349867290,1737467459704,-500.0,0.00020993,2]
[349867291,1737467459714,-1354.16,0.00020993,2]
[349867292,1737467459724,-1212.35,0.00020993,2]
[349867293,1737467459734,-548.26,0.00020993,2]
[349867294,1737467459743,-1093.27,0.00020993,2]
[349867295,1737467459753,-523.42,0.00020993,2]
[349867296,1737467459762,-527.39,0.00020993,2]
[349867297,1737467459772,-500.0,0.00020993,2]
[349867298,1737467459782,-805.78,0.00020993,2]
[349867299,1737467459791,-1376.43,0.00020993,2]
[349867300,1737467459800,-726.98,0.00020993,2]
[349867301,1737467459811,-723.33,0.00020993,2]
[349867302,1737467459820,-1107.66,0.00020993,2]
[349867303,1737467459831,-500.0,0.00020993,2]
[349867304,1737467459840,-511.72,0.00020993,2]
[349867305,1737467459850,-828.69,0.00020993,2]
[349867306,1737467459859,-500.0,0.00020993,2]
[349867307,1737467459869,-566.99,0.00020993,2]
[349867308,1737467459879,-500.0,0.00020993,2]
[349867309,1737467459889,-1194.35,0.00020993,2]
[349867310,1737467459898,-1742.51,0.00020993,2]
[349867311,1737467459907,-724.04,0.00020993,2]
[349867312,1737467459917,-500.0,0.00020993,2]
[349867313,1737467459927,-485.05,0.00020994,2]
[349867314,1737467459936,-500.0,0.00020994,2]
[349867315,1737467459946,-421.947426,0.00020994,2]
[349867316,1737467459956,-500.0,0.00020994,2]
[349867317,1737467459965,-612.72,0.00020994,2]
[349867318,1737467459975,-415.580186,0.00020994,2]
[349867319,1737467459985,-1553.35,0.00020994,2]
[349867320,1737467459995,-659.36,0.00020994,2]
[349867321,1737467460005,-3609.54,0.00020994,2]
[349867322,1737467460015,-864.65,0.00020994,2]
[349867323,1737467460026,-500.0,0.00020994,2]
[349867324,1737467460036,-1415.16,0.00020994,2]
[349867325,1737467460046,-766.83,0.00020994,2]
[349867326,1737467460056,-1021.51,0.00020994,2]
[349867327,1737467460066,-496.0,0.00020994,2]
[349867328,1737467460078,-1214.72,0.00020994,2]
[349867329,1737467460090,-2006.85,0.00020994,2]
[349867330,1737467460100,-775.32,0.00020994,2]
[349867331,1737467460110,-2437.78,0.00020994,2]
[349867332,1737467460120,-500.0,0.00020994,2]
[349867333,1737467460131,-596.17,0.00020994,2]
[349867334,1737467460140,-1041.63,0.00020994,2]
[349867335,1737467460150,-2164.7,0.00020994,2]
[349867336,1737467460161,-1077.2,0.00020994,2]
[349867337,1737467460170,-500.0,0.00020994,2]
[349867338,1737467460180,-2956.03,0.00020994,2]
[349867339,1737467460190,-1055.9,0.00020994,2]
[349867340,1737467460199,-500.0,0.00020994,2]
[349867341,1737467460209,-500.0,0.00020994,2]
[349867342,1737467460219,-1401.3,0.00020994,2]
[349867343,1737467460228,-500.0,0.00020994,2]
[349867344,1737467460239,-500.0,0.00020994,2]
[349867345,1737467460250,-500.0,0.00020994,2]
[349867346,1737467460260,-988.75,0.00020994,2]
[349867347,1737467460271,-638.07,0.00020994,2]
[349867348,1737467460282,-715.28,0.00020994,2]
[349867349,1737467460292,-554.41,0.00020994,2]
[349867350,1737467460302,-574.09,0.00020994,2]
[349867351,1737467460312,-500.0,0.00020994,2]
[349867352,1737467460322,-1916.58,0.00020994,2]
[349867353,1737467460332,-784.8,0.00020994,2]
[349867354,1737467460341,-449.16,0.00020995,2]
[349867355,1737467460351,-500.0,0.00020995,2]
[349867356,1737467460361,-500.0,0.00020995,2]
[349867357,1737467460371,-500.0,0.00020995,2]
[349867358,1737467460381,-500.0,0.00020995,2]
[349867359,1737467460390,-500.0,0.00020995,2]
[349867360,1737467460400,-500.0,0.00020995,2]
[349867361,1737467460410,-500.0,0.00020995,2]
[349867362,1737467460420,-500.0,0.00020995,2]
[349867363,1737467460429,-531.95,0.00020995,2]
[349867364,1737467460441,-500.0,0.00020995,2]
[349867365,1737467460450,-500.0,0.00020995,2]
[349867366,1737467460460,-393.96,0.00020995,2]
[349867367,1737467460470,-500.0,0.00020995,2]
[349867368,1737467460480,-500.0,0.00020995,2]
[349867369,1737467460489,-500.0,0.00020995,2]
[349867370,1737467460499,-500.0,0.00020995,2]
[349867371,1737467460508,-488.40568509,0.00020995,2]
[349867372,1737467460519,-442.24388083,0.00020995,2]
[349867373,1737467460530,-500.0,0.00020995,2]
[349867374,1737467460540,-500.0,0.00020995,2]
[349867375,1737467460550,-544.59,0.00020995,2]
[349867376,1737467460560,-502.36,0.00020995,2]
[349867377,1737467460570,-522.88,0.00020995,2]
[349867378,1737467460579,-500.0,0.00020995,2]
[349867379,1737467460588,-500.0,0.00020995,2]
[349867380,1737467460598,-539.91,0.00020995,2]
[349867381,1737467460607,-532.35,0.00020995,2]
[349867382,1737467460617,-883.89,0.00020995,2]
[349867383,1737467460626,-500.0,0.00020995,2]
[349867384,1737467460635,-500.0,0.00020995,2]
[349867385,1737467460646,-500.0,0.00020995,2]
[349867386,1737467460655,-184.6771953,0.00020995,2]
[349867387,1737467460665,-186.96,0.00020995,2]
[349867388,1737467460675,-500.0,0.00020995,2]
[349867389,1737467460685,-2935.14,0.00020995,2]
[349867390,1737467460695,-500.0,0.00020995,2]
[349867391,1737467460705,-2823.03,0.00020995,2]
[349867392,1737467460715,-573.67,0.00020995,2]
[349867393,1737467460725,-2729.29,0.00020995,2]
[349867394,1737467460734,-517.09987087,0.00020995,2]
[349867395,1737467460744,-500.0,0.00020995,2]
[349867396,1737467460754,-156.44,0.00020995,2]
[349867397,1737467460763,-500.0,0.00020995,2]
[349867398,1737467460774,-500.0,0.00020995,2]
[349867399,1737467460784,-500.0,0.00020995,2]
[349867400,1737467460794,-500.0,0.00020995,2]
[349867401,1737467460803,-500.0,0.00020995,2]
[349867402,1737467460813,-700.0,0.00021,2]
[349867403,1737467460823,-1759957.70937206,0.00021,15]
[349867404,1737467461062,-57878.21754864,0.00021,15]
[349867405,1737467461249,-1576.28720605,0.00021,15]
[349867406,1737467461262,-397.80455426,0.00021,15]
[349867407,1737467461274,-4184.03664,0.00021,15]
[349867408,1737467461285,-469.42790403,0.00021,15]
[349867409,1737467461300,-8407.07762932,0.00021,15]
[349867410,1737467461311,-1094.09291928,0.00021,15]
[349867411,1737467461475,-302.19993991,0.00021,15]
[349867412,1737467461494,-6309.392208,0.00021,15]
[349867413,1737467461519,-448.9242745,0.00021,15]
[349867414,1737467461540,-310.15,0.00021,15]
[349867415,1737467461721,-267.180579,0.00021,15]
[349867416,1737467461732,-24489.48492701,0.00021,15]
[349867417,1737467461747,-402.6,0.00021,15]
[349867418,1737467461759,-2522.60204522,0.00021,15]
[349867419,1737467461772,-304.87900704,0.00021,15]
[349867420,1737467461784,-304.32540826,0.00021,15]
[349867421,1737467461796,-8045.03993257,0.00021,15]
[349867422,1737467461955,-3620.00919077,0.0001935,2]
[349867423,1737467461966,-500.0,0.00019351,2]
[349867424,1737467461976,-500.0,0.00019625,2]
[349867425,1737467461986,-500.0,0.00019899,2]
[349867426,1737467461995,-500.0,0.00020173,2]
[349867427,1737467462005,-500.0,0.00020447,2]
[349867428,1737467462014,-500.0,0.00020721,2]
[349867429,1737467462023,-229.33010672,0.00020913,2]
[349867430,1737467462034,-500.0,0.00020995,2]
[349867431,1737467462043,-19151.83261365,0.00021,15]
[349867432,1737467462055,-1614.76742654,0.00021,15]
[349867433,1737467462067,-3219.7266,0.00021,15]
[349867434,1737467462079,-602.02,0.00021,15]
[349867435,1737467462093,-3194.30708307,0.00021,15]
[349867436,1737467462105,-694.37500009,0.00021,15]
[349867437,1737467462117,-9980.6,0.00021,15]
[349867438,1737467462130,-3690.28856584,0.00021,15]
[349867439,1737467462147,-5530.20000021,0.00021,15]
[349867440,1737467462159,-2177.564991,0.00021,15]
[349867441,1737467462171,-2611.4125,0.00021,15]
[349867442,1737467462183,-1955.8075663,0.00021,15]
[349867443,1737467462195,-2074.8974902,0.00021,15]
[349867444,1737467462206,-353.53285901,0.00021,15]
[349867445,1737467462219,-821.43665412,0.00021,15]
[349867446,1737467561886,257.13,0.0001949,30]
[349867447,1737467829442,50000.0,0.00022658,30]
[349867448,1737467833260,50000.0,0.00022658,31]
[349867449,1737467836502,27887.4987295,0.00022658,32]
[349867452,1737468245277,157.59,0.00010137,2]
[349867454,1737468341595,550.0,0.00015,2]
[349867455,1737468455749,244.27,0.00018411,30]
[349867456,1737468456146,244.27,0.00020995,30]
[349867484,1737468631671,-598.4,0.00016548,2]
[349867485,1737468631681,-410.86126559,0.000169,2]
[349867486,1737468631691,-600.0,0.00017,2]
[349867487,1737468631700,-1930.0,0.000174,5]
[349867488,1737468631709,-200.0,0.00018084,2]
[349867489,1737468631719,-1000.0,0.00018224,2]
[349867490,1737468631728,-1415.2,0.0001842,2]
[349867491,1737468631738,-1500.0,0.00018438,2]
[349867492,1737468631747,-234.72,0.00018442,2]
[349867493,1737468631756,-194.47,0.00018456,2]
[349867494,1737468631766,-216.01,0.00018459,2]
[349867495,1737468631776,-248.05,0.00018483,2]
[349867496,1737468631785,-250.0,0.00018483,2]
[349867497,1737468631795,-194.57,0.00018511,2]
[349867498,1737468631804,-300.0,0.00018529,2]
[349867499,1737468631813,-2751.0,0.0001853,2]
[349867500,1737468631823,-231.76,0.00018536,2]
[349867501,1737468631832,-678.4,0.00018551,2]
[349867502,1737468631842,-598.4,0.00018812,2]
[349867503,1737468631852,-650.0,0.00019,2]
[349867504,1737468631862,-119672.78786073,0.000192,2]
[349867505,1737468631874,-147826.21213927,0.000192,2]
[349867506,1737468631883,-435.52,0.0001925,2]
[349867507,1737468631892,-10181.6,0.00019275,2]
[349867508,1737468631902,-466.069,0.00019339,2]
[349867509,1737468631911,-500.0,0.00019349,2]
[349867510,1737468631921,-500.0,0.00019349,2]
[349867511,1737468631931,-500.0,0.00019349,2]
[349867512,1737468631940,-500.0,0.00019349,2]
[349867513,1737468631950,-500.0,0.00019349,2]
[349867514,1737468631959,-500.0,0.00019349,2]
[349867516,1737468631969,-500.0,0.00019349,2]
[349867518,1737468631978,-500.0,0.00019349,2]
[349867520,1737468631987,-500.0,0.00019349,2]
[349867522,1737468631996,-500.0,0.00019349,2]
[349867524,1737468632005,-500.0,0.00019349,2]
[349867526,1737468632015,-500.0,0.00019349,2]
[349867528,1737468632024,-500.0,0.00019349,2]
[349867530,1737468632033,-500.0,0.00019349,2]
[349867532,1737468632043,-564.89344077,0.00019349,2]
[349867534,1737468632054,-500.0,0.00019349,2]
[349867536,1737468632064,-500.0,0.00019349,2]
[349867537,1737468632073,-500.0,0.00019349,2]
[349867539,1737468632082,-500.0,0.00019349,2]
[349867541,1737468632092,-500.0,0.00019349,2]
[349867543,1737468632101,-500.0,0.00019349,2]
[349867545,1737468632110,-500.0,0.00019349,2]
[349867547,1737468632119,-500.0,0.00019349,2]
[349867549,1737468632129,-500.0,0.00019349,2]
[349867551,1737468632138,-500.0,0.00019349,2]
[349867553,1737468632147,-500.0,0.00019349,2]
[349867555,1737468632156,-500.0,0.00019349,2]
[349867557,1737468632165,-500.0,0.00019349,2]
[349867559,1737468632175,-500.0,0.00019349,2]
[349867561,1737468632184,-500.0,0.00019349,2]
[349867563,1737468632193,-500.0,0.00019349,2]
[349867565,1737468632203,-500.0,0.00019349,2]
[349867567,1737468632212,-500.0,0.0001935,2]
[349867569,1737468632221,-500.0,0.0001935,2]
[349867571,1737468632231,-491.56622696,0.0001935,2]
[349867573,1737468632240,-434.79155666,0.0001935,2]
[349867576,1737468632249,-500.0,0.0001935,2]
[349867579,1737468632259,-513.95825394,0.0001935,2]
[349867582,1737468632268,-500.0,0.0001935,2]
[349867585,1737468632277,-500.0,0.0001935,2]
[349867588,1737468632287,-500.0,0.0001935,2]
[349867591,1737468632296,-500.0,0.0001935,2]
[349867594,1737468632308,-500.0,0.0001935,2]
[349867597,1737468632317,-500.0,0.0001935,2]
[349867637,1737468632519,-500.0,0.0001935,2]
[349867639,1737468632529,-500.0,0.0001935,2]
[349867642,1737468632539,-500.0,0.0001935,2]
[349867644,1737468632548,-500.0,0.0001935,2]
[349867647,1737468632560,-500.0,0.0001935,2]
[349867649,1737468632570,-500.0,0.0001935,2]
[349867651,1737468632580,-500.0,0.0001935,2]
[349867653,1737468632589,-500.0,0.0001935,2]
[349867655,1737468632598,-500.0,0.0001935,2]
[349867657,1737468632608,-500.0,0.0001935,2]
[349867659,1737468632617,-500.0,0.0001935,2]
[349867660,1737468632627,-500.0,0.0001935,2]
[349867662,1737468632637,-500.0,0.0001935,2]
[349867663,1737468632646,-500.0,0.0001935,2]
[349867664,1737468632656,-500.0,0.0001935,2]
[349867665,1737468632665,-500.0,0.0001935,2]
[349867666,1737468632675,-500.0,0.0001935,2]
[349867667,1737468632684,-511.99657616,0.0001935,2]
[349867668,1737468632693,-500.0,0.0001935,2]
[349867669,1737468632702,-500.0,0.0001935,2]
[349867670,1737468632711,-500.0,0.0001935,2]
[349867671,1737468632720,-500.0,0.0001935,2]
[349867672,1737468632729,-500.0,0.0001935,2]
[349867673,1737468632738,-500.0,0.0001935,2]
[349867674,1737468632747,-512.34034123,0.0001935,2]
[349867675,1737468632757,-500.0,0.0001935,2]
[349867676,1737468632766,-500.0,0.0001935,2]
[349867677,1737468632775,-614.19665902,0.0001935,2]
[349867678,1737468632790,-513.14028951,0.0001935,2]
[349867679,1737468632819,-514.78850625,0.0001935,2]
[349867680,1737468632852,-500.0,0.0001935,2]
[349867681,1737468632874,-515.12971938,0.0001935,2]
[349867682,1737468632896,-500.0,0.0001935,2]
[349867683,1737468632918,-500.0,0.0001935,2]
[349867684,1737468632939,-500.0,0.0001935,2]
[349867685,1737468632959,-500.0,0.0001935,2]
[349867686,1737468632983,-500.0,0.0001935,2]
[349867687,1737468632994,-500.0,0.0001935,2]
[349867688,1737468633003,-501.64,0.0001935,2]
[349867689,1737468633013,-500.0,0.0001935,2]
[349867690,1737468633023,-500.0,0.0001935,2]
[349867691,1737468633033,-500.0,0.0001935,2]
[349867692,1737468633043,-500.0,0.0001935,2]
[349867693,1737468633055,-500.0,0.0001935,2]
[349867694,1737468633066,-500.0,0.0001935,2]
[349867695,1737468633075,-639.89814384,0.0001935,2]
[349867696,1737468633085,-500.0,0.0001935,2]
[349867697,1737468633095,-500.0,0.0001935,2]
[349867698,1737468633106,-500.0,0.0001935,2]
[349867699,1737468633116,-500.0,0.0001935,2]
[349867700,1737468633126,-500.0,0.0001935,2]
[349867701,1737468633136,-500.0,0.0001935,2]
[349867702,1737468633145,-500.0,0.0001935,2]
[349867703,1737468633155,-500.0,0.0001935,2]
[349867704,1737468633166,-500.0,0.0001935,2]
[349867705,1737468633176,-500.0,0.0001935,2]
[349867706,1737468633186,-500.0,0.0001935,2]
[349867707,1737468633196,-500.0,0.0001935,2]
[349867708,1737468633206,-262.31929283,0.0001935,2]
[349867709,1737468633216,-500.0,0.0001935,2]
[349867710,1737468633225,-500.0,0.0001935,2]
[349867711,1737468633235,-500.0,0.0001935,2]
[349867712,1737468633245,-873.0,0.000194,3]
[349867713,1737468633255,-1000.0,0.000194,2]
[349867714,1737468633265,-1000.0,0.000194,2]
[349867715,1737468633275,-1000.0,0.000194,2]
[349867716,1737468633284,-1000.0,0.000194,2]
[349867717,1737468633294,-497.31339856,0.00019474,2]
[349867718,1737468633305,-170.40183452,0.00019523,2]
[349867719,1737468633315,-289.6739,0.00019524,2]
[349867720,1737468633324,-57166.0,0.00019563,2]
[349867721,1737468633334,-500.0,0.00019573,2]
[349867722,1737468633343,-500.0,0.00019573,2]
[349867723,1737468633353,-500.0,0.00019573,2]
[349867724,1737468633363,-500.0,0.00019573,2]
[349867725,1737468633373,-959.2,0.00019573,2]
[349867726,1737468633383,-570.76,0.00019573,2]
[349867727,1737468633394,-500.0,0.00019573,2]
[349867728,1737468633404,-858.74,0.00019573,2]
[349867729,1737468633414,-552.55,0.00019573,2]
[349867730,1737468633424,-862.45,0.00019573,2]
[349867731,1737468633434,-500.0,0.00019573,2]
[349867732,1737468633443,-611.95,0.00019573,2]
[349867733,1737468633453,-899.84,0.00019573,2]
[349867734,1737468633463,-500.0,0.00019573,2]
[349867735,1737468633472,-500.0,0.00019573,2]
[349867736,1737468633483,-1199.08,0.00019573,2]
[349867737,1737468633497,-500.0,0.00019573,2]
[349867738,1737468633506,-937.87,0.00019573,2]
[349867739,1737468633516,-561.46,0.00019573,2]
[349867740,1737468633527,-500.0,0.00019573,2]
[349867741,1737468633536,-500.0,0.00019573,2]
[349867742,1737468633546,-500.0,0.00019573,2]
[349867743,1737468633561,-500.0,0.00019573,2]
[349867744,1737468633573,-1537.47,0.00019573,2]
[349867745,1737468633584,-500.0,0.00019573,2]
[349867746,1737468633594,-500.0,0.00019573,2]
[349867747,1737468633603,-500.0,0.00019573,2]
[349867748,1737468633613,-500.0,0.00019573,2]
[349867749,1737468633623,-711.75,0.00019573,2]
[349867750,1737468633633,-500.0,0.00019573,2]
[349867751,1737468633643,-500.0,0.00019573,2]
[349867752,1737468633652,-321.18352236,0.00019623,2]
[349867753,1737468633663,-500.0,0.00019623,2]
[349867754,1737468633673,-607.61,0.00019623,2]
[349867755,1737468633683,-500.0,0.00019623,2]
[349867756,1737468633693,-256.66,0.00019623,2]
[349867757,1737468633703,-500.0,0.00019623,2]
[349867758,1737468633713,-500.0,0.00019623,2]
[349867759,1737468633723,-500.0,0.00019623,2]
[349867760,1737468633733,-500.0,0.00019623,2]
[349867761,1737468633742,-500.0,0.00019624,2]
[349867762,1737468633752,-501.64,0.00019624,2]
[349867763,1737468633762,-203.97754488,0.00019624,2]
[349867764,1737468633772,-500.0,0.00019624,2]
[349867765,1737468633782,-497.31339851,0.00019743,2]
[349867766,1737468633792,-2032.37,0.00019767,7]
[349867767,1737468633802,-2032.37,0.00019767,7]
[349867768,1737468633817,-2032.37,0.00019767,7]
[349867769,1737468633829,-2032.37,0.00019767,7]
[349867770,1737468633840,-5000.0,0.00019796,2]
[349867771,1737468633850,-433.3565,0.00019796,2]
[349867772,1737468633861,-500.0,0.00019847,2]
[349867773,1737468633871,-500.0,0.00019847,2]